bitfinex-derivatives/quotes_SOLF0:USTF0_20250816
["timestamp","ask_amount","ask_price","bid_price","bid_amount"]
[1755331849901,4.4568549,188.62,188.51,5.3009]
[1755331850101,3.06,188.6,188.52,2.85]
[1755331850300,3.06,188.58,188.53,2.8256639]
[1755331850501,3.06,188.61,188.54,2.85]
[1755331850701,4.20219366,188.6,188.54,2.85]
[1755331850899,4.20219366,188.59,188.53,2.8256639]
[1755331851101,3.06,188.62,188.54,2.85]
[1755331851402,4.4568549,188.63,188.54,2.85]
[1755331851403,3.06,188.6,188.54,2.85]
[1755331851602,3.06,188.58,188.55,2.85]
[1755331851798,3.06,188.62,188.53,2.85]
[1755331852106,3.06,188.6,188.53,2.85]
[1755331852306,3.06,188.58,188.5,2.8256639]
[1755331852604,3.06,188.56,188.5,2.85]
[1755331855506,4.4568549,188.52,188.39,2.85]
[1755331855707,3.06,188.5,188.39,2.85]
[1755331855904,3.06,188.48,188.39,2.85]
[1755331856602,3.06,188.46,188.39,2.85]
[1755331858308,3.06,188.46,188.42,2.85]
[1755331858705,3.06,188.45,188.41,2.8256639]
[1755331859007,3.06,188.44,188.43,2.85]
[1755331859203,4.4568549,188.52,188.43,2.85]
[1755331859403,3.06,188.5,188.43,2.85]
[1755331859598,2.8256639,188.47,188.25,106.6166]
[1755331859798,3.06,188.43,188.31,2.85]
[1755331859999,4.21431256,188.42,188.31,2.85]
[1755331860204,3.06,188.4,188.31,2.85]
[1755331861403,7.2825188,188.44,188.31,2.85]
[1755331861404,3.06,188.38,188.31,2.85]
[1755331862405,3.06,188.38,188.29,2.8256639]
[1755331862607,3.06,188.38,188.3,2.85]
[1755331864201,4.4568549,188.46,188.35,2.8256639]
[1755331864408,3.06,188.44,188.36,2.85]
[1755331864607,3.06,188.42,188.36,2.85]
[1755331866209,4.20641147,188.41,188.34,2.85]
[1755331866517,3.06,188.44,188.34,5.6756639]
[1755331866716,3.06,188.42,188.35,2.85]
[1755331867213,4.20607012,188.41,188.35,2.85]
[1755331867515,3.06,188.44,188.35,2.85]
[1755331867715,3.06,188.42,188.35,2.85]
[1755331867916,3.06,188.4,188.35,2.85]
[1755331868109,3.06,188.4,188.34,2.8256639]
[1755331868309,3.06,188.4,188.36,2.85]
[1755331869325,4.20095444,188.39,188.32,2.85]
[1755331869524,3.06,188.37,188.32,2.85]
[1755331869724,3.06,188.42,188.31,2.85]
[1755331869922,3.06,188.4,188.31,2.85]
[1755331870125,3.06,188.38,188.31,2.85]
[1755331870323,4.19993783,188.37,188.21,228.6]
[1755331870525,3.06,188.35,188.24,2.85]
[1755331870721,7.2825188,188.39,188.27,2.85]
[1755331870920,3.06,188.36,188.27,2.85]
[1755331871125,4.20034412,188.35,188.27,2.85]
[1755331871324,3.06,188.35,188.27,2.85]
[1755331872223,4.20021125,188.34,188.27,2.85]
[1755331872421,4.19858185,188.33,188.27,2.85]
[1755331872617,3.06,188.37,188.27,2.85]
[1755331872817,3.06,188.35,188.27,2.85]
[1755331873029,3.06,188.33,188.27,2.85]
[1755331873324,4.19821686,188.32,188.27,2.85]
[1755331873531,3.06,188.31,188.27,2.85]
[1755331874824,3.06,188.36,188.27,2.85]
[1755331875124,3.06,188.34,188.27,2.85]
[1755331875330,7.2572131,188.33,188.27,2.85]
[1755331875527,3.06,188.33,188.27,2.85]
[1755331876232,7.25721274,188.32,188.28,2.85]
[1755331876429,3.06,188.37,188.29,2.8256639]
[1755331876636,4.19712699,188.36,188.3,2.85]
[1755331876826,4.4568549,188.39,188.3,2.85]
[1755331876827,7.25712699,188.35,188.3,2.85]
[1755331877027,5.90125069,188.41,188.3,2.85]
[1755331877028,3.06,188.38,188.3,2.85]
[1755331877230,4.19648816,188.37,188.3,2.85]
[1755331877430,4.19648816,188.36,188.3,2.85]
[1755331877632,3.06,188.38,188.32,2.85]
[1755331877831,3.06,188.36,188.32,2.85]
[1755331878328,3.06,188.38,188.33,2.85]
[1755331878533,7.25690456,188.37,188.33,2.85]
[1755331878728,4.19690456,188.36,188.33,2.85]
[1755331879030,4.19701572,188.35,188.34,2.88]
[1755331879227,7.25701572,188.35,188.34,2.88]
[1755331881026,3.06,188.34,188.28,2.88]
[1755331881333,3.06,188.32,188.28,2.88]
[1755331881528,7.25817683,188.31,188.26,2.8256639]
[1755331881729,3.06,188.35,188.27,2.88]
[1755331881930,3.06,188.33,188.27,2.88]
[1755331882136,3.06,188.31,188.27,2.88]
[1755331882337,3.06,188.29,188.28,2.88]
[1755331884337,3.06,188.34,188.28,2.88]
[1755331884636,4.4568549,188.35,188.28,2.88]
[1755331884637,3.06,188.32,188.28,2.88]
[1755331884834,3.06,188.3,188.28,2.88]
[1755331885135,4.19034735,188.29,188.27,2.88]
[1755331885342,3.06,188.29,188.25,2.88]
[1755331886033,4.4568549,188.34,188.26,2.88]
[1755331886334,3.06,188.32,188.26,2.88]
[1755331886534,3.06,188.3,188.26,2.88]
[1755331886734,4.19062809,188.29,188.26,2.88]
[1755331887040,3.06,188.3,188.26,2.88]
[1755331887340,4.19146428,188.29,188.26,2.88]
[1755331887542,3.06,188.29,188.26,2.88]
[1755331887740,3.06,188.27,188.22,2.88]
[1755331887941,3.06,188.26,188.22,2.88]
[1755331888148,3.06,188.31,188.22,5.3088]
[1755331888329,3.06,188.29,188.23,2.88]
[1755331888534,3.06,188.27,188.23,2.88]
[1755331888831,3.06,188.26,188.25,2.88]
[1755331890737,4.4568549,188.32,188.25,2.88]
[1755331890933,3.06,188.3,188.25,2.88]
[1755331891241,7.25179187,188.29,188.25,2.88]
[1755331891438,7.25179187,188.28,188.22,2.88]
[1755331891738,3.06,188.28,188.22,2.88]
[1755331891932,3.06,188.28,188.25,2.88]
[1755331892133,3.06,188.33,188.26,2.88]
[1755331892334,4.19306714,188.32,188.26,2.88]
[1755331892543,3.06,188.3,188.26,5.3079]
[1755331892841,7.25306714,188.29,188.28,2.88]
[1755331896337,4.19306714,188.29,188.28,2.88]
[1755331897038,4.19306714,188.29,188.28,8.1874]
[1755331897745,4.19306714,188.29,188.28,2.88]
[1755331897946,7.25306714,188.29,188.28,2.88]
[1755331898148,7.25306714,188.29,188.28,8.1874]
[1755331899747,7.25306714,188.29,188.28,2.88]
[1755331901544,4.19306714,188.29,188.28,2.88]
[1755331901945,7.25306714,188.29,188.28,2.88]
[1755331902947,4.44968534,188.32,188.28,2.88]
[1755331903149,5.90125069,188.35,188.31,2.8256639]
[1755331903345,3.06,188.34,188.33,2.88]
[1755331905550,5.90125069,188.38,188.33,2.88]
[1755331905752,3.06,188.38,188.32,2.88]
[1755331905948,4.49326578,188.37,188.32,2.88]
[1755331906251,3.06,188.36,188.32,2.88]
[1755331906444,3.06,188.36,188.33,2.88]
[1755331906952,5.90125069,188.39,188.32,5.3062]
[1755331907151,5.90125069,188.4,188.34,2.8256639]
[1755331907341,3.06,188.37,188.34,2.8256639]
[1755331907654,3.06,188.36,188.35,2.88]
[1755331908952,3.12,188.4,188.35,2.88]
[1755331910751,3.12,188.4,188.34,2.8256639]
[1755331910947,3.12,188.4,188.35,3.01]
[1755331911258,3.12,188.4,188.36,3.01]
[1755331913062,3.12,188.4,188.35,3.01]
[1755331914359,3.12,188.4,188.36,3.01]
[1755331914763,3.12,188.4,188.34,5.8356639]
[1755331914962,4.06118905,188.39,188.34,5.8356639]
[1755331915162,7.02,188.41,188.35,3.01]
[1755331915163,4.06118905,188.38,188.35,3.01]
[1755331915462,3.12,188.4,188.34,2.8256639]
[1755331915659,4.06086349,188.39,188.36,3.01]
[1755331915862,3.12,188.37,188.36,3.01]
[1755331916066,7.02,188.41,188.36,3.01]
[1755331916262,3.12,188.38,188.36,3.01]
[1755331916466,3.12,188.38,188.37,3.01]
[1755331920863,7.02,188.41,188.37,3.01]
[1755331921069,7.02,188.41,188.38,3.01]
[1755331921873,7.02,188.41,188.4,5.8356639]
[1755331922070,5.90125069,188.51,188.41,3.01]
[1755331922271,4.03928293,188.5,188.44,3.01]
[1755331922470,3.12,188.48,188.45,3.01]
[1755331923162,3.12,188.48,188.46,3.01]
[1755331923364,3.12,188.48,188.47,3.01]
[1755331923571,8.72691459,188.57,188.47,3.01]
[1755331923868,3.12,188.49,188.48,3.01]
[1755331925369,3.12,188.49,188.43,2.8256639]
[1755331925573,3.12,188.49,188.42,3.01]
[1755331932175,2.8256639,188.57,188.46,2.8256639]
[1755331932372,3.12,188.55,188.47,3.01]
[1755331932581,3.12,188.53,188.47,3.01]
[1755331934273,3.12,188.57,188.46,2.8256639]
[1755331934478,4.01755268,188.56,188.47,3.01]
[1755331934676,4.01755268,188.55,188.47,3.01]
[1755331934881,4.01755268,188.54,188.47,3.01]
[1755331935176,2.8256639,188.57,188.47,3.01]
[1755331935177,3.12,188.53,188.47,3.01]
[1755331942481,356.62,188.58,188.47,3.01]
[1755331942681,2.83,188.56,188.49,2.8256639]
[1755331942876,356.62,188.58,188.49,2.8256639]
[1755331942877,2.83,188.54,188.5,2.96]
[1755331943071,142.28,188.59,188.5,2.96]
[1755331943278,2.83,188.57,188.48,2.96]
[1755331943477,2.83,188.55,188.48,2.96]
[1755331943676,2.83,188.53,188.48,2.96]
[1755331943884,2.83,188.53,188.5,2.96]
[1755331944078,142.28,188.59,188.44,2.96]
[1755331944079,2.83,188.51,188.44,2.96]
[1755331944280,2.8256639,188.48,188.39,2.96]
[1755331944579,2.83,188.46,188.39,2.96]
[1755331946374,2.83,188.46,188.4,2.96]
[1755331947084,2.83,188.46,188.4,5.304]
[1755331947284,2.83,188.45,188.41,2.96]
[1755331947783,2.83,188.44,188.41,2.96]
[1755331948781,2.83,188.5,188.41,2.96]
[1755331948976,2.83,188.48,188.41,2.96]
[1755331949178,2.83,188.48,188.44,2.96]
[1755331949880,5.6556639,188.54,188.42,2.96]
[1755331950086,2.8256639,188.51,188.42,2.96]
[1755331950283,2.83,188.49,188.42,2.96]
[1755331950483,2.83,188.47,188.42,2.96]
[1755331950681,2.83,188.47,188.43,2.96]
[1755331950987,2.83,188.47,188.41,2.96]
[1755331951381,2.83,188.45,188.37,2.8256639]
[1755331951580,2.83,188.45,188.39,2.96]
[1755331952783,2.8256639,188.48,188.39,2.96]
[1755331953087,2.83,188.49,188.44,2.96]
[1755331953779,2.83,188.51,188.47,2.96]
[1755331953984,2.83,188.53,188.47,2.96]
[1755331954192,2.83,188.51,188.44,2.96]
[1755331954387,2.83,188.51,188.44,8.2627]
[1755331954585,2.83,188.51,188.45,2.96]
[1755331955590,2.83,188.56,188.46,2.96]
[1755331955783,4.02430499,188.55,188.46,2.96]
[1755331955980,4.02430499,188.54,188.46,5.7856639]
[1755331956183,2.83,188.52,188.46,2.8256639]
[1755331956580,2.83,188.52,188.46,5.7856639]
[1755331956880,2.83,188.52,188.47,2.96]
[1755331957080,2.83,188.52,188.48,2.96]
[1755331957278,4.02600568,188.51,188.48,2.96]
[1755331957587,2.83,188.56,188.48,2.96]
[1755331957783,2.83,188.54,188.46,2.96]
[1755331957981,2.83,188.52,188.46,2.96]
[1755331958183,2.83,188.5,188.46,2.96]
[1755331958490,2.83,188.48,188.46,2.96]
[1755331958688,8.72691459,188.56,188.44,2.96]
[1755331958882,2.83,188.54,188.44,2.96]
[1755331959081,2.83,188.52,188.44,2.96]
[1755331959286,2.83,188.5,188.44,2.96]
[1755331959586,2.83,188.55,188.44,2.96]
[1755331959792,2.83,188.53,188.44,2.96]
[1755331959986,4.0291924,188.52,188.44,2.96]
[1755331960184,6.8591924,188.51,188.44,8.2627]
[1755331960390,6.8591924,188.5,188.46,2.8256639]
[1755331960689,2.83,188.51,188.47,2.96]
[1755331961379,2.83,188.5,188.47,2.96]
[1755331961580,2.83,188.5,188.48,2.96]
[1755331961785,2.83,188.56,188.48,2.96]
[1755331961988,2.83,188.54,188.48,2.96]
[1755331962183,2.83,188.52,188.48,2.96]
[1755331962389,2.83,188.5,188.48,2.96]
[1755331962690,2.83,188.56,188.46,5.7856639]
[1755331962885,2.83,188.54,188.46,5.7856639]
[1755331963087,2.83,188.52,188.46,5.7856639]
[1755331963283,2.83,188.5,188.46,5.7856639]
[1755331963489,2.83,188.5,188.46,2.96]
[1755331963684,2.83,188.5,188.43,2.8256639]
[1755331963880,2.83,188.5,188.48,2.96]
[1755331964085,2.83,188.5,188.49,2.96]
[1755331964285,6.86850326,188.5,188.49,2.96]
[1755331964484,6.86850326,188.5,188.47,2.96]
[1755331964687,2.83,188.49,188.48,2.96]
[1755331966196,2.83,188.54,188.48,2.96]
[1755331966389,2.83,188.52,188.48,2.96]
[1755331966593,6.86857,188.51,188.48,2.96]
[1755331966793,4.03857,188.5,188.48,2.96]
[1755331966991,2.83,188.51,188.49,2.96]
[1755331967196,4.03966237,188.5,188.45,5.3026]
[1755331967389,2.83,188.51,188.45,5.3026]
[1755331967390,2.83,188.49,188.45,5.3026]
[1755331967793,2.83,188.49,188.46,2.96]
[1755331968993,2.97,188.5,188.46,2.96]
[1755331969599,10.38,188.54,188.46,2.96]
[1755331969795,2.97,188.49,188.46,2.96]
[1755331970398,2.97,188.48,188.47,2.96]
[1755331970994,10.37485771,188.48,188.29,2.96]
[1755331971190,2.97,188.41,188.29,2.96]
[1755331971497,2.97,188.39,188.3,3.98362257]
[1755331971697,2.97,188.37,188.3,2.96]
[1755331972001,2.97,188.35,188.31,3.98362257]
[1755331972302,2.97,188.33,188.32,2.96]
[1755331972498,9.16442334,188.33,188.3,2.96]
[1755331972700,4.03919381,188.32,188.31,2.96]
[1755331973404,2.97,188.33,188.31,2.96]
[1755331973700,2.15008205,188.32,188.31,2.96]
[1755331974596,2.97,188.33,188.31,2.96]
[1755331975298,2.97,188.37,188.32,1.02362257]
[1755331975497,9.42269741,188.36,188.26,2.96]
[1755331975692,6.45269741,188.35,188.31,5.3065]
[1755331975900,2.97,188.34,188.32,2.96]
[1755331976102,2.97,188.34,188.33,2.96]
[1755331976600,2.97,188.34,188.31,2.96]
[1755331976800,2.97,188.33,188.32,2.96]
[1755331978703,4.45115696,188.41,188.32,2.96]
[1755331978907,2.97,188.39,188.33,1.02362257]
[1755331979105,4.45115696,188.41,188.33,1.02362257]
[1755331979106,2.97,188.37,188.33,3.98362257]
[1755331979306,2.97,188.35,188.33,3.98362257]
[1755331979504,2.97,188.34,188.33,3.98362257]
[1755331980005,2.97,188.34,188.33,1.02362257]
[1755331980302,7.42431457,188.34,188.33,1.02362257]
[1755331980601,2.97,188.34,188.33,3.98362257]
[1755331982207,2.97,188.34,188.33,1.02362257]
[1755331985103,5.00521,188.34,188.33,1.02362257]
[1755331985504,9.45430639,188.34,188.33,1.02362257]
[1755331987104,15.17160885,188.34,188.33,1.02362257]
[1755331987408,15.17160885,188.34,188.25,100.82133255]
[1755331987409,2.97,188.33,188.26,2.96]
[1755331987613,6.48430639,188.32,188.27,2.96]
[1755331987910,4.45115696,188.36,188.27,2.96]
[1755331987911,2.97,188.3,188.27,2.96]
[1755331988105,2.0339098,188.29,188.28,1.02362257]
[1755331988311,5.0039098,188.29,188.28,3.98362257]
[1755331989710,5.0039098,188.29,188.28,1.02362257]
[1755331989912,5.0039098,188.29,188.28,3.98362257]
[1755331990910,2.0339098,188.29,188.23,2.96]
[1755331991106,2.97,188.27,188.25,2.96]
[1755331991301,4.45115696,188.33,188.25,2.96]
[1755331991302,5.0039098,188.26,188.25,2.96]
[1755331991710,5.0039098,188.26,188.25,3.98362257]
[1755331993505,5.0039098,188.26,188.21,2.96]
[1755331993506,2.97,188.25,188.21,2.96]
[1755331993710,7.74073942,188.24,188.21,1.02362257]
[1755331993912,2.0339098,188.23,188.21,2.96]
[1755331994108,2.97,188.23,188.22,3.98362257]
[1755331994310,4.99779679,188.23,188.22,2.96]
[1755331994612,2.02779679,188.23,188.22,3.98362257]
[1755331995211,7.72956159,188.23,188.22,3.98362257]
[1755331996310,8.52,188.25,188.22,1.02362257]
[1755331996510,7.61056521,188.24,188.23,3.98362257]
[1755331996706,7.61056521,188.24,188.23,2.96]
[1755331997010,7.61056521,188.24,188.23,9.29242257]
[1755331997815,1.91317137,188.24,188.23,9.29242257]
[1755331998706,8.52,188.25,188.23,3.98362257]
[1755331998907,11.46,188.25,188.24,2.92]
[1755331999208,15.89276621,188.25,188.24,2.92]
[1755331999712,12.95276621,188.25,188.24,2.92]
[1755332001006,12.95276621,188.25,188.24,3.94362257]
[1755332002015,8.52,188.25,188.24,3.94362257]
[1755332002905,8.52,188.25,188.24,9.25212257]
[1755332003110,8.52,188.25,188.24,3.94362257]
[1755332005215,8.52,188.25,188.24,9.25212257]
[1755332005610,12.95481639,188.25,188.24,9.25212257]
[1755332005911,8.52,188.25,188.24,9.25212257]
[1755332006319,12.95490285,188.25,188.24,9.25212257]
[1755332007312,4.45115696,188.31,188.27,5.3077]
[1755332007522,2.94,188.29,188.28,2.92]
[1755332007721,14.54274608,188.29,188.27,5.3077]
[1755332007928,7.37815086,188.28,188.27,9.25132257]
[1755332008230,4.43815086,188.28,188.27,8.2277]
[1755332008426,4.43815086,188.28,188.27,9.25132257]
[1755332008625,7.37815086,188.28,188.27,9.25132257]
[1755332008826,4.43815086,188.28,188.27,9.25132257]
[1755332010029,7.37815086,188.28,188.27,9.25132257]
[1755332010225,4.45115696,188.32,188.31,5.3066]
[1755332010423,7.39038313,188.32,188.31,2.92]
[1755332010627,7.39038313,188.32,188.31,3.94362257]
[1755332012231,7.39038313,188.32,188.31,9.25022257]
[1755332012624,4.45115696,188.36,188.31,1.02362257]
[1755332012823,4.45115696,188.37,188.32,9.24982257]
[1755332013029,1.63831324,188.36,188.32,3.94362257]
[1755332013330,4.45115696,188.36,188.33,2.92]
[1755332013734,11.15370755,188.35,188.28,2.84328733]
[1755332013929,4.45115696,188.33,188.28,2.84328733]
[1755332014228,5.90125069,188.36,188.29,1.02362257]
[1755332014229,11.16003642,188.32,188.29,1.02362257]
[1755332014434,6.70887946,188.31,188.28,2.92]
[1755332014632,4.45115696,188.32,188.29,1.02362257]
[1755332014934,9.65160258,188.31,188.29,3.94362257]
[1755332015233,2.94,188.32,188.31,2.92]
[1755332015431,9.64570062,188.32,188.31,2.92]
[1755332015828,9.64570062,188.32,188.28,2.84328733]
[1755332015829,2.94,188.31,188.28,2.92]
[1755332016028,4.45219623,188.31,188.29,1.02362257]
[1755332016225,9.65082255,188.3,188.29,3.94362257]
[1755332016932,9.65082255,188.3,188.23,5.3086]
[1755332017130,2.94,188.28,188.24,2.92]
[1755332017534,2.94,188.28,188.26,2.92]
[1755332017929,2.94,188.28,188.27,2.92]
[1755332018130,9.62270034,188.28,188.27,2.92]
[1755332018332,2.94,188.28,188.27,2.92]
[1755332018528,2.94,188.29,188.27,1.02362257]
[1755332018833,2.94,188.28,188.27,3.94362257]
[1755332019031,2.94,188.28,188.27,2.92]
[1755332019227,4.45292868,188.3,188.27,3.94362257]
[1755332019430,2.94,188.29,188.28,2.92]
[1755332020324,7.39292868,188.29,188.28,2.92]
[1755332021338,4.45292868,188.33,188.29,2.92]
[1755332021634,4.45292868,188.34,188.31,2.84328733]
[1755332021938,4.45292868,188.35,188.33,2.92]
[1755332022234,4.45292868,188.36,188.35,2.92]
[1755332022636,4.45292868,188.37,188.35,2.92]
[1755332022831,4.45292868,188.38,188.35,2.92]
[1755332023128,7.39292868,188.39,188.37,2.92]
[1755332023326,4.45292868,188.39,188.36,2.92]
[1755332023524,4.45292868,188.39,188.36,1.02362257]
[1755332023735,4.45292868,188.39,188.37,2.92]
[1755332024335,14.26292868,188.4,188.36,6.32872257]
[1755332024535,2.94,188.39,188.38,2.92]
[1755332024739,17.20292868,188.4,188.39,2.92]
[1755332024934,4.33803307,188.4,188.39,2.92]
[1755332025443,4.33803307,188.4,188.39,3.94362257]
[1755332025634,4.33803307,188.4,188.39,1.02362257]
[1755332025828,4.33803307,188.4,188.39,3.94362257]
[1755332026029,7.27803307,188.4,188.39,1.02362257]
[1755332026931,7.27803307,188.4,188.39,3.94362257]
[1755332027138,4.33803307,188.4,188.39,3.94362257]
[1755332027927,2.94,188.44,188.39,3.94362257]
[1755332028129,4.3328512,188.43,188.4,2.92]
[1755332028335,4.3328512,188.42,188.4,2.92]
[1755332028542,2.94,188.43,188.4,2.92]
[1755332028836,4.33084436,188.42,188.41,3.04]
[1755332029234,2.94,188.45,188.41,3.04]
[1755332029430,4.33050026,188.44,188.39,3.04]
[1755332029635,132.08,188.48,188.4,3.04]
[1755332029834,2.94,188.46,188.4,1.02362257]
[1755332030036,2.94,188.44,188.42,3.04]
[1755332030237,2.94,188.43,188.42,3.04]
[1755332030635,2.94,188.47,188.39,3.04]
[1755332030832,2.94,188.45,188.39,4.06362257]
[1755332031032,2.94,188.43,188.39,3.04]
[1755332031241,2.94,188.42,188.41,3.04]
[1755332031739,2.94,188.42,188.41,4.06362257]
[1755332031939,2.94,188.42,188.41,1.02362257]
[1755332032644,2.94,188.42,188.36,3.04]
[1755332033834,4.32273785,188.41,188.36,3.04]
[1755332034145,2.94,188.46,188.37,1.02362257]
[1755332034343,2.94,188.44,188.37,1.02362257]
[1755332034544,2.94,188.42,188.37,4.06362257]
[1755332034742,2.94,188.42,188.37,1.02362257]
[1755332035048,2.94,188.4,188.37,1.02362257]
[1755332036544,2.94,188.4,188.37,4.06362257]
[1755332036942,2.94,188.4,188.37,1.02362257]
[1755332037146,4.32207954,188.39,188.34,3.04]
[1755332037445,2.94,188.42,188.34,3.04]
[1755332037649,2.94,188.4,188.34,3.04]
[1755332037843,4.32225769,188.39,188.35,1.02362257]
[1755332038048,2.94,188.38,188.35,1.02362257]
[1755332038343,2.94,188.38,188.31,3.04]
[1755332038544,2.94,188.38,188.31,4.06362257]
[1755332039146,2.94,188.38,188.32,3.04]
[1755332041040,2.94,188.38,188.33,1.02362257]
[1755332041243,2.94,188.38,188.34,3.04]
[1755332041749,7.37406916,188.43,188.34,3.04]
[1755332041944,2.94,188.41,188.34,4.06362257]
[1755332042143,2.94,188.39,188.34,4.06362257]
[1755332042348,2.94,188.39,188.35,3.04]
[1755332042552,2.94,188.37,188.34,1.02362257]
[1755332043043,2.94,188.37,188.34,4.06362257]
[1755332043742,2.94,188.36,188.34,4.06362257]
[1755332044342,2.94,188.36,188.35,3.04]
[1755332044947,2.94,188.36,188.34,1.02362257]
[1755332045140,2.94,188.36,188.31,3.04]
[1755332045341,2.94,188.4,188.32,3.04]
[1755332045545,2.94,188.38,188.32,3.04]
[1755332045741,4.3166846,188.37,188.33,1.02362257]
[1755332045938,2.94,188.38,188.34,3.04]
[1755332046140,2.94,188.36,188.35,3.04]
[1755332047550,7.25833702,188.36,188.35,3.04]
[1755332048943,2.94,188.35,188.31,3.04]
[1755332049148,2.94,188.39,188.31,1.02362257]
[1755332049450,2.94,188.37,188.32,3.04]
[1755332049648,2.94,188.35,188.32,3.04]
[1755332050852,2.94,188.37,188.32,3.04]
[1755332051053,7.26255106,188.36,188.33,1.02362257]
[1755332051253,2.94,188.36,188.35,3.04]
[1755332051455,7.26392641,188.36,188.35,3.04]
[1755332054352,4.32392641,188.36,188.35,3.04]
[1755332054547,7.37406916,188.41,188.35,4.06362257]
[1755332054745,4.3258408,188.4,188.36,3.04]
[1755332054953,4.3258408,188.39,188.36,3.04]
[1755332055155,4.3258408,188.38,188.36,3.04]
[1755332055354,2.94,188.4,188.36,3.04]
[1755332055655,4.3259144,188.39,188.37,3.04]
[1755332055864,4.3259144,188.38,188.37,3.04]
[1755332063964,4.3259144,188.38,188.37,4.06362257]
[1755332069563,14.22125069,188.44,188.38,3.1]
[1755332069564,7.29406916,188.43,188.38,3.1]
[1755332069764,7.19461362,188.42,188.38,3.1]
[1755332069963,4.33461362,188.41,188.38,3.1]
[1755332070161,4.33461362,188.4,188.39,4.12362257]
[1755332070365,4.33461362,188.4,188.39,3.1]
[1755332073171,7.19461362,188.4,188.39,3.1]
[1755332073669,4.33461362,188.4,188.39,3.1]
[1755332075870,7.19461362,188.4,188.39,3.1]
[1755332076064,4.33461362,188.4,188.39,4.12362257]
[1755332084175,7.19461362,188.4,188.39,4.12362257]
[1755332084580,4.33461362,188.4,188.39,4.12362257]
[1755332084872,4.33461362,188.4,188.39,3.1]
[1755332086672,7.19461362,188.4,188.39,3.1]
[1755332087375,4.33461362,188.4,188.39,3.1]
[1755332087774,7.19461362,188.4,188.39,3.1]
[1755332088771,7.19461362,188.4,188.39,4.91648878]
[1755332090074,4.33461362,188.4,188.39,4.91648878]
[1755332091173,7.20461362,188.4,188.39,4.91648878]
[1755332091578,4.33461362,188.4,188.39,4.91648878]
[1755332093279,2.87,188.42,188.41,4.85648878]
[1755332093980,8.32,188.44,188.42,3.04]
[1755332094181,2.87,188.46,188.43,1.81648878]
[1755332094480,2.87,188.46,188.45,4.85648878]
[1755332095375,5.90125069,188.5,188.41,1.81648878]
[1755332095376,2.87,188.45,188.41,1.81648878]
[1755332095580,2.87,188.44,188.41,4.85648878]
[1755332095877,7.32978924,188.44,188.41,4.85648878]
[1755332096077,2.87,188.43,188.41,4.85648878]
[1755332096477,2.87,188.42,188.41,4.85648878]
[1755332096680,2.87,188.42,188.41,4.06362257]
[1755332097185,4.45978924,188.44,188.42,3.04]
[1755332097388,2.87,188.49,188.44,3.04]
[1755332097689,2.87,188.47,188.44,3.04]
[1755332097879,2.87,188.47,188.46,3.04]
[1755332098280,4.45978924,188.5,188.46,3.04]
[1755332098587,4.45978924,188.5,188.46,5.87821363]